Workbook

Sheet INTRODUCTION
A1: Last Updated September 2020
B2: Converting Lawn to Pollinator Habitat: Savings Calculator
B3: Pollinating insects, such as bees and butterflies, need a diverse mix of vegetation for nesting and feeding and for all stages of life, from the larvae stage to mature adult. Converting lawn areas to gardens and wildflower meadows - or by simply reducing the number of times a lawn is mowed - will help create this critical pollinator habitat. Reducing the area and frequency of mowing will also reduce fuel usage, associated greenhouse gas emissions, and save staff time required to maintain the land. This calculator provides an estimate of cost-savings, staff time saved, and greenhouse gas emissions reduced by converting unused lawn into pollinator habitat.
A4: Input | B4: Under "Step 1," fill out the green boxes with the data pertaining to your site, including the type of pollinator habitat being created and whether you would like to include mowing labor costs in your cost-savings calculations*. Fill out the yellow cells in "Step 1a" if "till & seed" is selected as the habitat change. If no data is input, default data will be used. Note that this default data reflects costs if equipment is owned by the agency and labor is done by existing staff. "Step 2" offers the opportunity to input data points around labor and fuel costs, if known. We have provided "default" values based on data found in the "Assumptions" tab. If you want to use these values, select "yes" in the "Use default data?" column. This will auto-fill the necessary cells. Otherwise, select "no" and input your own data in the yellow cells.
B5: *Note that including labor costs in the calculations will reflect higher overall savings as fewer staff hours are needed to maintain pollinator habitats. However, staff hours could be reassigned to other tasking and thus monetary benefits may not be measurable.
A6: Results | B6: The results tab generates tables and graphs to compare the traditional mowing regime to the maintenance of the new pollinator habitat. Note that you may need to zoom out or scroll to the right to see every chart. If printing is desired, set the paper orientation to "Landscape;" all charts should fit onto two pages.
A7: Assumptions | B7: Default values have been provided in the input tab based on prior research and user feedback. The rationale and sources behind these estimates can be found in the Assumptions tab. Note that these values may change year to year and region to region.
A8: Resources | B8: The Resouces tab provides descriptions and links to other organizations that offer expertise, best-practices, and funding related to pollinator habitat creation. These resources are intended to be purely informational; DOER does not support in any official capacity any of the listed organizations.

Sheet Input
B2: Pollinator Habitat Savings Calculator: Input
B6: Do not make edits to cells that are gray | G6: Step 1a: Till & Seed Upfront Capital (Setup) Costs
B7: Step 1: Site Details | D7: Data Input | G7: =IF(type="till & seed", "Insert values below if known. Otherwise, default is used.", "Do not fill below. No capital (upfront setup) costs for limited-mow.") -> Do not fill below. No capital (upfront setup) costs for limited-mow.
B8: Parcel Size (acres) | D8: 1 | G8: Preparation Costs | I8: Default Costs | J8: Data Input
B9: Baseline # of Mows (annually) | D9: 12 | G9: Tilling equipment amortized costs | I9: =IF(J9>0,"-",preparing*acres) -> 15.5
B10: Fuel Type for Mower | D10: gasoline | G10: Seed Cost | I10: =IF(J10>0,"-",seeds*acres) -> 763.7825
B11: Type of Change | D11: limited mow | G11: Seeding equipment amortized costs | I11: =IF(J11>0,"-",seeding*acres) -> 19.5
B12: Include mowing labor costs in calculations? | D12: yes | G12: Labor Cost | I12: =IF(J12>0,"-",labor_cost_default*acres*7) -> 259.77
G13: Total Till & Seed Capital Cost | I13: =IF(AND(J9="",J10="",J11="",J12=""),SUM(I9:I12),SUM(IF(J9="",I9,J9)+(IF(J10="",I10,J10))+(IF(J11="",I11,J11))+(IF(J12="",I12,J12)))) -> 1058.5525
B15: Step 2: Site Management Logistics | D15: Default Data | E15: Use Default Data?
B16: Mowing Time (hours per mow) | D16: =hours_per_acre*acres -> 1.5 | E16: yes | F16: 1.5
B17: Fuel Cost (per gallon) | D17: =IF(fuel="gasoline", gas, IF(fuel="diesel", diesel,IF(fuel="propane", propane))) -> 2.58 | E17: yes | F17: 2.58
B18: Fuel Usage (gallons per mow) | D18: =IF(fuel="gasoline",gallons_gas*mowing_time,IF(fuel="diesel",gallons_diesel*mowing_time,IF(fuel="propane",gallons_propane*mowing_time))) -> 2.475 | E18: yes | F18: 2.475
B19: Annual Amortized Mower Maintenance Cost | D19: =maintenance_cost_hourly * mowing_time * annual_mows -> 30.6 | E19: yes | F19: 20.4
B20: Mowing Labor Cost (per hour) | D20: =IF(include_labor="yes",labor_cost_default,"n/a") -> 37.11 | E20: yes | F20: 40

Sheet Results Summary
B2: Business as Usual vs Pollinator Habitat: Conversion Savings Summary
B3: Three key takeaways are highlighted at the top. See the boxes below for details.
E5: Est. Annual Savings | F5: =I14 -> 748.9405
E6: Annual Avoided Emissions (lb CO2) | F6: =I16 -> 533.5847298
E7: Payback of Upfront Capital Costs | F7: =I19 -> Year 1
H8: Estimated Pollinator Habitat Savings
B9: Business as Usual Mowed Turf Costs | E9: =IF(type="till & seed", "Pollinator Habitat Costs: Till & Seed", "Pollinator Habitat Costs: No Mow") -> Pollinator Habitat Costs: No Mow | I9: Annual | J9: Lifetime (8 years)
B10: Site Preparation Costs | C10: 0 | E10: Site Preparation Costs | F10: =IF(AND(type="till & seed", capitalcost_input<>""), capitalcost_input, IF(AND(type="till & seed", capitalcost_input=""), capitalcost_default, 0)) -> 0 | H10: Year 1 Site Preparation Cost | I10: =-F10 -> 0 | J10: =I10 -> 0
B11: Annual Fuel Cost | C11: =F11*annual_mows -> 76.626 | E11: Annual Fuel Cost | F11: =IFERROR(fuel_cost*fuel_usage, fuel_cost_default*fuel_usage_default) -> 6.3855 | H11: Fuel Cost Savings | I11: =C11-F11 -> 70.2405 | J11: =I11*8 -> 561.924
B12: Annual Labor Cost | C12: =IFERROR(F12*annual_mows,"-") -> 720 | E12: Annual Labor Cost | F12: =IF(include_labor="yes",mowing_time*labor_cost,"-") -> 60 | H12: Labor Cost Savings | I12: =IFERROR(C12-F12,"-") -> 660 | J12: =IFERROR(I12*8,"-") -> 5280
B13: Annual Amortized Maintenance Cost | C13: =IFERROR(F13*annual_mows, "-") -> 20.4 | E13: Annual Amortized Maintenance Cost | F13: =IFERROR(maintenance_cost/annual_mows,"-") -> 1.7 | H13: Amortized Maintence Cost Savings | I13: =IFERROR(C13-F13,"-") -> 18.7 | J13: =IFERROR(I13*8,"-") -> 149.6
B14: Total Year 1 Cost | C14: =SUM(C10:C13) -> 817.026 | E14: Total Year 1 Cost | F14: =SUM(F10:F13) -> 68.0855 | H14: Total Gross Savings | I14: =SUM(I11:I13) -> 748.9405 | J14: =I14*8 -> 5991.524
B15: Total Annual Upkeep Cost | C15: =IFERROR(SUM(C11:C13), "-") -> 817.026 | E15: Total Annual Upkeep Cost | F15: =IFERROR(SUM(F11:F13), "-") -> 68.0855 | H15: Net Savings Over Lifetime | I15: - | J15: =SUM(J10:J13) -> 5991.524
B16: Greenhouse Gas Emissions (lb CO2) | C16: =F16*annual_mows -> 582.0924325 | E16: Greenhouse Gas Emissions (lb CO2) | F16: =IF(fuel="gasoline", ghg_gas*fuel_usage, IF(fuel="diesel", ghg_diesel*fuel_usage, IF(fuel="propane", ghg_propane*fuel_usage))) -> 48.5077027 | H16: Avoided GHG Emissions (lb CO2) | I16: =C16-F16 -> 533.5847298 | J16: =I16*8 -> 4268.677838
B17: Annual Mowing Time (hrs) | C17: =F17*annual_mows -> 18 | E17: Annual Mowing Time (hrs) | F17: =mowing_time -> 1.5 | H17: Mowing Time Savings (hrs) | I17: =C17-F17 -> 16.5 | J17: =I17*8 -> 132
B18: Pollinator habitats are typically only mowed once a year. However, they may need extra care in the first two years in order for the seeds to take. Note this potential cost is not accounted for in the calcualtions. | H18: Annual Upkeep: Percent Cost Reduction | I18: =IFERROR(1-(F15/C15),"-") -> 0.9166666667
H19: Payback of Upfront Capital (Setup) Cost | I19: =IF(type="no mow","N/A",IF(SIGN(year1new)=1,Year_1,IF(SIGN(year2new)=1,Year_2,IF(SIGN(year3new)=1,Year_3,IF(SIGN(year4new)=1,Year_4,IF(SIGN(year5new)=1,Year_5,IF(SIGN(year6new)=1,Year_6, IF(SIGN(year7new)=1,Year_7, IF(SIGN(year8new)=1,Year_8,"After Year 8"))))))))) -> Year 1

Sheet Results (Annual)
B1: Annual upkeep costs, mowing time, and GHG emissions: Business as Usual vs Pollinator Habitat

Sheet Results (Lifetime)
B1: Cumulative Upkeep Costs, Mowing Time, and GHG Emissions over 8 years
B4: Cumulative Upkeep Costs: Business as Usual vs Pollinator Habitat
C5: Capital Cost | D5: Year 1 | E5: Year 2 | F5: Year 3 | G5: Year 4 | H5: Year 5 | I5: Year 6 | J5: Year 7 | K5: Year 8
B6: Business as Usual | C6: 0 | D6: =IFERROR('Results Summary'!$C$15, "-") -> 817.026 | E6: =IFERROR(2*'Results Summary'!$C$15, "-") -> 1634.052 | F6: =IFERROR(3*'Results Summary'!$C$15, "-") -> 2451.078 | G6: =IFERROR(4*'Results Summary'!$C$15, "-") -> 3268.104 | H6: =IFERROR(5*'Results Summary'!$C$15, "-") -> 4085.13 | I6: =IFERROR(6*'Results Summary'!$C$15, "-") -> 4902.156 | J6: =IFERROR(7*'Results Summary'!$C$15, "-") -> 5719.182 | K6: =IFERROR(8*'Results Summary'!$C$15, "-") -> 6536.208
B7: Pollinator Habitat | C7: ='Results Summary'!F10 -> 0 | D7: =IFERROR('Results Summary'!$F$15+C7, "-") -> 68.0855 | E7: =IFERROR('Results Summary'!$F$15+D7, "-") -> 136.171 | F7: =IFERROR('Results Summary'!$F$15+E7, "-") -> 204.2565 | G7: =IFERROR('Results Summary'!$F$15+F7, "-") -> 272.342 | H7: =IFERROR('Results Summary'!$F$15+G7, "-") -> 340.4275 | I7: =IFERROR('Results Summary'!$F$15+H7, "-") -> 408.513 | J7: =IFERROR('Results Summary'!$F$15+I7, "-") -> 476.5985 | K7: =IFERROR('Results Summary'!$F$15+J7, "-") -> 544.684
B8: Net Savings | C8: =C6-C7 -> 0 | D8: =D6-D7 -> 748.9405 | E8: =E6-E7 -> 1497.881 | F8: =F6-F7 -> 2246.8215 | G8: =G6-G7 -> 2995.762 | H8: =H6-H7 -> 3744.7025 | I8: =I6-I7 -> 4493.643 | J8: =J6-J7 -> 5242.5835 | K8: =K6-K7 -> 5991.524
B22: Cumulative Mowing Time: Business as Usual vs. Pollinator Habitat
C23: Year 1 | D23: Year 2 | E23: Year 3 | F23: Year 4 | G23: Year 5 | H23: Year 6 | I23: Year 7 | J23: Year 8
B24: Business as Usual | C24: =mowing_time*annual_mows -> 18 | D24: =IFERROR(C24*2, "-") -> 36 | E24: =IFERROR(C24*3, "-") -> 54 | F24: =IFERROR(C24*4, "-") -> 72 | G24: =IFERROR(C24*5, "-") -> 90 | H24: =IFERROR(C24*6, "-") -> 108 | I24: =IFERROR(C24*7, "-") -> 126 | J24: =IFERROR(C24*8, "-") -> 144
B25: Pollinator Habitat | C25: =IFERROR(mowing_time, "-") -> 1.5 | D25: =IFERROR(C25*2, "-") -> 3 | E25: =IFERROR(C25*3, "-") -> 4.5 | F25: =IFERROR(C25*4, "-") -> 6 | G25: =IFERROR(C25*5, "-") -> 7.5 | H25: =IFERROR(C25*6, "-") -> 9 | I25: =IFERROR(C25*7, "-") -> 10.5 | J25: =IFERROR(C25*8, "-") -> 12
B26: Net Savings | C26: =C24-C25 -> 16.5 | D26: =D24-D25 -> 33 | E26: =E24-E25 -> 49.5 | F26: =F24-F25 -> 66 | G26: =G24-G25 -> 82.5 | H26: =H24-H25 -> 99 | I26: =I24-I25 -> 115.5 | J26: =J24-J25 -> 132
B40: Cumulative GHG Emissions: Business as Usual vs. Pollinator Habitat
C41: Year 1 | D41: Year 2 | E41: Year 3 | F41: Year 4 | G41: Year 5 | H41: Year 6 | I41: Year 7 | J41: Year 8
B42: Business as Usual | C42: ='Results Summary'!C16 -> 582.0924325 | D42: =IFERROR(C42*2, "-") -> 1164.184865 | E42: =IFERROR(C42*3, "-") -> 1746.277297 | F42: =IFERROR(C42*4, "-") -> 2328.36973 | G42: =IFERROR(C42*5, "-") -> 2910.462162 | H42: =IFERROR(C42*6, "-") -> 3492.554595 | I42: =IFERROR(C42*7, "-") -> 4074.647027 | J42: =IFERROR(C42*8, "-") -> 4656.73946
B43: Pollinator Habitat | C43: =IFERROR('Results Summary'!F16, "-") -> 48.5077027 | D43: =IFERROR(C43*2, "-") -> 97.01540541 | E43: =IFERROR(C43*3, "-") -> 145.5231081 | F43: =IFERROR(C43*4, "-") -> 194.0308108 | G43: =IFERROR(C43*5, "-") -> 242.5385135 | H43: =IFERROR(C43*6, "-") -> 291.0462162 | I43: =IFERROR(C43*7, "-") -> 339.5539189 | J43: =IFERROR(C43*8, "-") -> 388.0616216
B44: Net Savings | C44: =C42-C43 -> 533.5847298 | D44: =D42-D43 -> 1067.16946 | E44: =E42-E43 -> 1600.754189 | F44: =F42-F43 -> 2134.338919 | G44: =G42-G43 -> 2667.923649 | H44: =H42-H43 -> 3201.508379 | I44: =I42-I43 -> 3735.093108 | J44: =J42-J43 -> 4268.677838

Sheet Assumptions
A1: References & Assumptions
A2: Listed below are assumptions made in calculating the "default" options. References include multiple sources and can be made available upon request.
A4: Default Option Choices
A5: yes | B5: uses default
A6: no | B6: uses input
A8: Types of Fuel | B8: Cost | C8: Gallons/hr | D8: GHG (lb CO2e/gallon)
A9: diesel | B9: 2.99 | C9: 1 | D9: =10.16*2.20462 -> 22.3989392
A10: gasoline | B10: 2.58 | C10: 1.65 | D10: =8.89*2.20462 -> 19.5990718
A11: propane | B11: 3.23 | C11: 1.8 | D11: =5.76*2.20462 -> 12.6986112
B13: References
A14: Greenhouse Gas (GHG) Emissions | B14: https://www.eia.gov/environment/emissions/co2_vol_mass.php
A15: MA Propane Prices - Dec 2019 | B15: https://www.mass.gov/service-details/massachusetts-retail-alternative-transportation-fuel-prices
A16: MA Fuel Prices - Dec 2019 | B16: https://www.mass.gov/service-details/massachusetts-retail-gasoline-diesel-fuel-prices
A17: Fuel Emission Calculator | B17: https://www.grasshoppermower.com/fuel-calculator/
A18: Fueling Options | B18: https://www.government-fleet.com/152977/fueling-options-for-mowers
A19: Propane Vehicles | B19: https://www.afdc.energy.gov/vehicles/propane.html
A22: Hours Mowing per Acre | B22: 1.5 | C22: Assumption: 46" inch mower width, 3-4mph
B24: References
A25: Mowing Calculator | B25: https://www.inchcalculator.com/lawn-mowing-calculator/
A26: Mowing Productivity | B26: http://www.encoreequipment.com/wordpress/wp-content/uploads/2012/06/Mowing-Times-and-Productivity.pdf
B27: 108.9 / (mph x 0.9 x mower deck width in inches) = hours to mow one acre
A28: Landscape Calculator | B28: https://www.landscapecalculator.com/calculators/mow
A29: Mower Buying Guide | B29: https://www.lowes.com/projects/lawn-and-garden/riding-mower-buying-guide/project
A30: Average Mowing Times | B30: https://support.troybilt.com/s/article/165-1?language=en_US
A32: Labor Cost per Hour | B32: =AVERAGE(B35:B38) -> 37.11
C34: References
A35: Poll of Lawncare Service Providers | B35: 60 | C35: https://www.yourgreenpal.com/blog/what-is-a-fair-hourly-rate-or-lawn-care-are-you-getting-ripped-off
A36: Max. Landscaper Salary in MA | B36: 43 | C36: https://www.careerexplorer.com/careers/landscaper/salary/massachusetts/
A37: Avg Landscaper Salary in MA | B37: 27.13 | C37: https://www.careerexplorer.com/careers/landscaper/salary/massachusetts/
A38: Avg Hourly Rate in MA, May 2018 | B38: 18.31 | C38: https://www.bls.gov/oes/2018/may/oes373011.htm
A42: Amortized Maintenance Cost | B42: =((B45*B46)+(B47*B48))/B44 -> 1.7 | C42: amortized maintenance cost over life of equipment (per hour of use)
B43: Assumptions
B44: 300 | C44: hour riding mower life expectancy (ranges 250-300 hours)
B45: 140 | C45: per tune-up (includes air filter and oil change, new spark plug(s), sharping, clean carb, set RPMs, check linkage and spindles and wheels and tighten loose hardware and inspect for any other issues)
B46: =B44/100 -> 3 | C46: tune-ups per mower life (assuming tune-up every 100 hours)
B47: 30 | C47: per oil change
B48: =B44/50-B46 -> 3 | C48: oil changes per mower life (assuming oil change every 50 hours), not including oil changes during tune-ups
B50: References
A51: $249 Tune-Up | B51: https://www.mowernmore.com/tune-up
A52: $120 - $150 Repair Specialist | B52: https://www.thumbtack.com/p/lawn-mower-repair-cost
A53: $140 Riding Mower Tune Up | B53: http://www.thelawnmowerguy.net/Prices-and-services.html
A54: $30 Oil Change & Oil Cost | B54: http://superiorpowerequip.com/power-equipment-service/sturgeon-columbia-mo-service-prices/riding-lawn-mower-service-prices/ | V54: zero-turn mowers could last 3000 hours
A55: Riding Mower Left Expectancy | B55: https://www.consumerreports.org/cro/news/2011/06/q-a-should-you-buy-a-used-lawn-tractor-at-a-yard-sale/index.htm | V55: https://www.turfmagazine.com/products/zero-turn-mower-lifetime-hours/
A56: Riding Mower Tune Up Frequency | B56: http://progreengrass.com/when-should-i-tune-up-my-mower/
A57: Lowe's Mowers | B57: https://www.lowes.com/pl/Riding-lawn-mowers-Lawn-mowers-Outdoor-tools-equipment-Outdoors/4294612687?int_cmp=LawnMowers:C:OutdoorPowerEquipment:Merch:Mower_Cat_Page_Riding_Mower_CTA | V57: Stand-on commercial mower could last 1500 hours
A58: Home Depot's Mowers | B58: https://www.homedepot.com/b/Outdoors-Outdoor-Power-Equipment-Riding-Lawn-Mowers/N-5yc1vZc5ax | V58: https://todaysmower.com/cost-justify-commercial-mower/
A59: Used Mowers | B59: https://www.consumerreports.org/cro/news/2011/06/q-a-should-you-buy-a-used-lawn-tractor-at-a-yard-sale/index.htm
A61: Pollinator Habitat Type | B61: limited mow | C61: no initial site preparation to create pollinator habitat; typically mowed once per year.
B62: till & seed | C62: creates pollinator habitat by preparing and seeding the field
A64: Pollinator Habitat Costs | B64: Cost/Acre | C64: Cost/lb | D64: Meant to provide a cost-estimate only. State and other relevant experts should be consulted before selecting a seed mix.
A65: Seeds | B65: =AVERAGE(B66:B69) -> 763.7825
B66: =C66*7 -> 424.13 | C66: 60.59 | D66: Ernst Seed sample mix. Seed 7lbs/acre
B67: =C67*20 -> 688 | C67: 34.4 | D67: Ernst Seed northeast showyt mix. Seed 20lbs/acre
B68: =C68*6 -> 768 | C68: 128 | D68: https://roundstoneseed.com/pollinators-honey-bee-mix/1063-pollinator-conservation-mix.html
B69: =C69*25 -> 1175 | C69: 47 | D69: Cost estimate for sample grassland seed mix, recommended by MA DFW. 25lbs/acre. Contact ryan.kingston@mass.gov for info.
A71: Preparing | B71: 15.5 | C71: Assumption: vertical tillage equipment costs amortized over life of equipment (per acre)
A72: Seeding | B72: 19.5 | C72: Assumption: seeding planter equipment costs amortized over life of equipment (per acre)
B74: References
A75: Pollinator Conservation Seed Mixes | B75: https://xerces.org/pollinator-seed/
A76: 2017 Custom Machine & Work Rates | B76: https://msu.edu/~steind/cp-17%20MASTER%20Cust_MachineWrk%20NOV%2009%202016.pdf
A77: Cost Estimate: Field Operations | B77: http://www.farmdoc.illinois.edu/manage/machinery/field_operations_2017.pdf
A78: Estimating Farm Machinery Costs | B78: https://www.uaex.edu/publications/PDF/fsa-21.pdf
